fUSD/lending_fUSD_20241121
["ID","MTS","AMOUNT","RATE_DAILY","PERIOD"]
[342863872,1732189839214,-500.0,0.00041095,18]
[342863874,1732189839228,-809.83,0.00041095,18]
[342863876,1732189839237,-500.0,0.00041095,18]
[342863878,1732189839247,-500.0,0.00041095,18]
[342863880,1732189839256,-500.0,0.00041095,18]
[342863882,1732189839265,-500.0,0.00041095,18]
[342863884,1732189839274,-500.0,0.00041095,18]
[342863886,1732189839284,-500.0,0.00041095,18]
[342863888,1732189839294,-500.0,0.00041095,18]
[342863890,1732189839303,-512.34,0.00041095,18]
[342863892,1732189839313,-500.0,0.00041095,18]
[342863894,1732189839323,-1791.15,0.00041095,18]
[342863896,1732189839333,-500.0,0.00041095,18]
[342863898,1732189839342,-3076.68,0.00041095,18]
[342863900,1732189839351,-543.85,0.00041095,18]
[342863902,1732189839360,-500.0,0.00041095,18]
[342863904,1732189839370,-500.0,0.00041095,18]
[342863906,1732189839381,-500.0,0.00041095,18]
[342863908,1732189839390,-1015.24,0.00041095,18]
[342863910,1732189839401,-674.43,0.00041095,18]
[342863912,1732189839410,-500.0,0.00041095,18]
[342863914,1732189839420,-500.0,0.00041095,18]
[342863916,1732189839429,-544.43,0.00041095,18]
[342863918,1732189839439,-500.0,0.00041095,18]
[342863920,1732189839449,-1469.51,0.00041095,18]
[342863922,1732189839459,-500.0,0.00041095,18]
[342863924,1732189839468,-500.0,0.00041095,18]
[342863926,1732189839478,-500.0,0.00041095,18]
[342863928,1732189839488,-854.98,0.00041095,18]
[342863930,1732189839497,-641.06,0.00041095,18]
[342863932,1732189839507,-163.75689238,0.00041095,18]
[342863934,1732189839516,-1335.28,0.00041095,18]
[342863936,1732189839525,-1542.09,0.00041095,18]
[342863938,1732189839534,-500.0,0.00041095,18]
[342863940,1732189839543,-1051.94,0.00041095,18]
[342863942,1732189839553,-500.0,0.00041095,18]
[342863944,1732189839562,-500.0,0.00041095,18]
[342863946,1732189839572,-1000.0,0.00041095,18]
[342863948,1732189839581,-500.0,0.00041095,18]
[342863950,1732189839590,-743.89,0.00041095,18]
[342863952,1732189839600,-755.31,0.00041095,18]
[342863954,1732189839609,-950.18,0.00041095,18]
[342863956,1732189839620,-1311.08,0.00041095,18]
[342863958,1732189839631,-500.0,0.00041095,18]
[342863960,1732189839641,-500.0,0.00041095,18]
[342863962,1732189839650,-500.0,0.00041095,18]
[342863964,1732189839659,-500.0,0.00041095,18]
[342863966,1732189839669,-500.0,0.00041095,18]
[342863968,1732189839678,-500.0,0.00041095,18]
[342863970,1732189839687,-4518.09,0.00041095,18]
[342863972,1732189839697,-519.44,0.00041095,18]
[342863974,1732189839706,-500.0,0.00041095,18]
[342863976,1732189839715,-500.0,0.00041095,18]
[342863977,1732189839726,-1265.21,0.00041095,18]
[342863980,1732189839736,-500.0,0.00041095,18]
[342863981,1732189839746,-500.0,0.00041095,18]
[342863983,1732189839755,-500.0,0.00041095,18]
[342863985,1732189839765,-1153.99,0.00041095,18]
[342863987,1732189839774,-279.77746754,0.00041095,18]
[342863989,1732189839784,-500.0,0.00041095,18]
[342863991,1732189839794,-500.0,0.00041095,18]
[342863993,1732189839803,-4034.56,0.00041095,18]
[342863995,1732189839814,-500.0,0.00041095,18]
[342863997,1732189839823,-500.0,0.00041095,18]
[342863999,1732189839832,-1085.32,0.00041095,18]
[342864001,1732189839841,-500.0,0.00041095,18]
[342864003,1732189839851,-1120.71,0.00041095,18]
[342864005,1732189839860,-1073.07,0.00041095,18]
[342864007,1732189839870,-500.0,0.00041095,18]
[342864009,1732189839880,-500.0,0.00041095,18]
[342864011,1732189839890,-500.0,0.00041095,18]
[342864013,1732189839899,-603.23406442,0.00041095,18]
[342864015,1732189839909,-500.0,0.00041095,18]
[342864017,1732189839922,-500.0,0.00041095,18]
[342864019,1732189839931,-500.0,0.00041095,18]
[342864021,1732189839940,-704.4,0.00041095,18]
[342864023,1732189839950,-500.0,0.00041095,18]
[342864026,1732189839960,-1085.9,0.00041095,18]
[342864028,1732189839969,-500.0,0.00041095,18]
[342864030,1732189839979,-998.56,0.00041095,18]
[342864032,1732189839988,-750.28,0.00041095,18]
[342864034,1732189839998,-192.97645851,0.00041095,18]
[342864036,1732189840007,-818.24,0.00041095,18]
[342864038,1732189840016,-500.0,0.00041095,18]
[342864041,1732189840026,-512.73,0.00041095,18]
[342864042,1732189840035,-500.0,0.00041095,18]
[342864043,1732189840044,-640.0,0.00041095,18]
[342864045,1732189840054,-500.0,0.00041095,18]
[342864047,1732189840063,-500.0,0.00041095,18]
[342864049,1732189840072,-500.0,0.00041095,18]
[342864051,1732189840082,-2268.96,0.00041095,18]
[342864053,1732189840091,-2584.56,0.00041095,18]
[342864056,1732189840100,-500.0,0.00041095,18]
[342864059,1732189840110,-704.5,0.00041095,18]
[342864063,1732189840119,-1568.22,0.00041095,18]
[342864065,1732189840129,-500.0,0.00041095,18]
[342864068,1732189840139,-500.0,0.00041095,18]
[342864072,1732189840149,-500.0,0.00041095,18]
[342864075,1732189840158,-500.0,0.00041095,18]
[342864078,1732189840168,-500.0,0.00041095,18]
[342864080,1732189840177,-500.0,0.00041095,18]
[342864084,1732189840187,-500.0,0.00041095,18]
[342864086,1732189840196,-500.0,0.00041095,18]
[342864088,1732189840205,-500.0,0.00041095,18]
[342864091,1732189840215,-635.87352288,0.00041095,18]
[342864094,1732189840224,-500.0,0.00041095,18]
[342864098,1732189840234,-500.0,0.00041095,18]
[342864101,1732189840243,-811.21,0.00041095,18]
[342864103,1732189840253,-528.06534883,0.00041095,18]
[342864105,1732189840262,-500.0,0.00041095,18]
[342864107,1732189840272,-538.28,0.00041095,18]
[342864108,1732189840280,-627.01,0.00041095,18]
[342864110,1732189840290,-510.23,0.00041095,18]
[342864112,1732189840300,-500.0,0.00041095,18]
[342864114,1732189840309,-500.0,0.00041095,18]
[342864116,1732189840318,-500.0,0.00041095,18]
[342864118,1732189840328,-578.62,0.00041095,18]
[342864120,1732189840337,-500.0,0.00041095,18]
[342864122,1732189840347,-500.0,0.00041095,18]
[342864124,1732189840356,-500.0,0.00041095,18]
[342864126,1732189840366,-500.0,0.00041095,18]
[342864128,1732189840375,-500.0,0.00041095,18]
[342864130,1732189840386,-692.24059566,0.00041095,2]
[342864137,1732189840439,-307.75940434,0.00041095,2]
[342864139,1732189840449,-500.0,0.00041095,18]
[342864141,1732189840458,-500.0,0.00041095,18]
[342864143,1732189840468,-501.02749193,0.00041095,18]
[342864145,1732189840478,-500.0,0.00041095,18]
[342864147,1732189840487,-500.0,0.00041095,18]
[342864149,1732189840497,-500.0,0.00041095,18]
[342864151,1732189840506,-500.0,0.00041095,18]
[342864153,1732189840516,-500.0,0.00041095,18]
[342864155,1732189840525,-1504.89,0.00041095,18]
[342864157,1732189840535,-1533.89,0.00041095,18]
[342864159,1732189840544,-2621.54,0.00041095,18]
[342864161,1732189840554,-680.81,0.00041095,18]
[342864163,1732189840564,-500.0,0.00041095,18]
[342864165,1732189840574,-500.0,0.00041095,18]
[342864167,1732189840583,-866.93,0.00041095,18]
[342864169,1732189840593,-974.32,0.00041095,18]
[342864172,1732189840602,-500.0,0.00041095,18]
[342864175,1732189840611,-500.0,0.00041095,18]
[342864178,1732189840620,-592.53,0.00041095,18]
[342864181,1732189840631,-594.06,0.00041095,18]
[342864183,1732189840640,-500.0,0.00041095,18]
[342864185,1732189840650,-500.0,0.00041095,18]
[342864187,1732189840659,-2182.44,0.00041095,18]
[342864189,1732189840669,-897.87,0.00041095,18]
[342864191,1732189840678,-500.0,0.00041095,18]
[342864193,1732189840687,-500.0,0.00041095,18]
[342864195,1732189840697,-500.0,0.00041095,18]
[342864197,1732189840707,-1100.65,0.00041095,18]
[342864199,1732189840717,-623.6,0.00041095,18]
[342864201,1732189840726,-500.0,0.00041095,18]
[342864203,1732189840735,-500.0,0.00041095,18]
[342864205,1732189840745,-500.0,0.00041095,18]
[342864207,1732189840754,-612.83,0.00041095,18]
[342864209,1732189840764,-500.0,0.00041095,18]
[342864211,1732189840773,-500.0,0.00041095,18]
[342864213,1732189840783,-1527.53,0.00041095,18]
[342864215,1732189840793,-788.68,0.00041095,18]
[342864217,1732189840802,-1120.66,0.00041095,18]
[342864219,1732189840812,-500.0,0.00041095,18]
[342864221,1732189840822,-1855.85,0.00041095,18]
[342864223,1732189840831,-500.0,0.00041095,18]
[342864225,1732189840841,-653.38,0.00041095,18]
[342864227,1732189840851,-607.35,0.00041095,18]
[342864229,1732189840860,-500.0,0.00041095,18]
[342864231,1732189840870,-500.0,0.00041095,18]
[342864233,1732189840881,-1068.29,0.00041095,18]
[342864235,1732189840890,-1122.43,0.00041095,18]
[342864237,1732189840899,-3444.93,0.00041095,18]
[342864265,1732189841159,-500.0,0.00041095,18]
[342864267,1732189841169,-500.0,0.00041095,18]
[342864269,1732189841179,-664.28,0.00041095,18]
[342864271,1732189841189,-1715.39,0.00041095,18]
[342864273,1732189841199,-500.0,0.00041095,18]
[342864275,1732189841209,-1131.59,0.00041095,18]
[342864277,1732189841219,-522.56,0.00041095,18]
[342864279,1732189841229,-500.0,0.00041095,18]
[342864281,1732189841238,-500.0,0.00041095,18]
[342864283,1732189841248,-1259.95,0.00041095,18]
[342864285,1732189841257,-500.0,0.00041095,18]
[342864287,1732189841266,-1669.61,0.00041095,18]
[342864289,1732189841276,-500.0,0.00041095,18]
[342864291,1732189841285,-500.0,0.00041095,18]
[342864293,1732189841295,-1721.59,0.00041095,18]
[342864295,1732189841304,-500.0,0.00041095,18]
[342864297,1732189841314,-500.0,0.00041095,18]
[342864299,1732189841324,-288.99523737,0.00041095,18]
[342864301,1732189841333,-755.75,0.00041095,18]
[342864303,1732189841343,-500.0,0.00041095,18]
[342864305,1732189841352,-1206.04,0.00041095,18]
[342864307,1732189841362,-1298.53,0.00041095,18]
[342864309,1732189841372,-2101.08,0.00041095,18]
[342864311,1732189841383,-500.0,0.00041095,18]
[342864313,1732189841392,-500.0,0.00041095,18]
[342864315,1732189841402,-1305.95,0.00041095,18]
[342864317,1732189841412,-1195.6,0.00041095,18]
[342864319,1732189841422,-500.0,0.00041095,18]
[342864321,1732189841431,-501.35108455,0.00041095,18]
[342864323,1732189841441,-1453.61,0.00041095,18]
[342864325,1732189841450,-500.0,0.00041095,18]
[342864327,1732189841460,-500.0,0.00041095,18]
[342864329,1732189841470,-500.0,0.00041095,18]
[342864331,1732189841480,-1262.58,0.00041095,18]
[342864333,1732189841490,-642.46,0.00041095,18]
[342864335,1732189841499,-1030.43,0.00041095,18]
[342864337,1732189841510,-500.0,0.00041095,18]
[342864339,1732189841520,-2506.46,0.00041095,18]
[342864341,1732189841529,-1028.56,0.00041095,18]
[342864343,1732189841539,-500.0,0.00041095,18]
[342864345,1732189841549,-2005.3,0.00041095,18]
[342864347,1732189841558,-500.0,0.00041095,18]
[342864349,1732189841568,-502.68,0.00041095,18]
[342864351,1732189841577,-500.0,0.00041095,18]
[342864353,1732189841587,-500.0,0.00041095,18]
[342864355,1732189841596,-623.21,0.00041095,18]
[342864357,1732189841606,-500.0,0.00041095,18]
[342864359,1732189841615,-500.0,0.00041095,18]
[342864361,1732189841625,-500.0,0.00041095,18]
[342864363,1732189841635,-500.0,0.00041095,18]
[342864365,1732189841645,-958.06,0.00041095,18]
[342864367,1732189841655,-500.0,0.00041095,18]
[342864369,1732189841665,-500.0,0.00041095,18]
[342864371,1732189841674,-3013.72,0.00041095,18]
[342864373,1732189841684,-500.0,0.00041095,18]
[342864375,1732189841693,-2345.39,0.00041095,18]
[342864377,1732189841703,-500.0,0.00041095,18]
[342864379,1732189841712,-500.0,0.00041095,18]
[342864381,1732189841723,-500.0,0.00041095,18]
[342864383,1732189841732,-500.0,0.00041095,18]
[342864385,1732189841741,-1479.42,0.00041095,18]
[342864388,1732189841752,-957.62,0.00041095,18]
[342864390,1732189841762,-500.0,0.00041095,18]
[342864392,1732189841771,-500.0,0.00041095,18]
[342864394,1732189841781,-500.0,0.00041095,18]
[342864396,1732189841790,-500.0,0.00041095,18]
[342864398,1732189841800,-734.71,0.00041095,18]
[342864399,1732189841809,-500.0,0.00041095,18]
[342864401,1732189841818,-2426.25,0.00041095,18]
[342864403,1732189841829,-500.0,0.00041095,18]
[342864406,1732189841839,-509.46488752,0.00041095,18]
[342864408,1732189841849,-500.0,0.00041095,18]
[342864410,1732189841859,-1367.59,0.00041095,18]
[342864412,1732189841868,-500.0,0.00041095,18]
[342864414,1732189841877,-500.0,0.00041095,18]
[342864416,1732189841888,-500.0,0.00041095,18]
[342864417,1732189841898,-500.0,0.00041095,18]
[342864419,1732189841908,-500.0,0.00041095,18]
[342864422,1732189841919,-1029.87,0.00041095,18]
[342864424,1732189841929,-500.0,0.00041095,18]
[342864426,1732189841938,-500.0,0.00041095,18]
[342864428,1732189841948,-1298.13,0.00041095,18]
[342864430,1732189841958,-500.0,0.00041095,18]
[342864432,1732189841968,-699.22,0.00041095,18]
[342864434,1732189841977,-1436.99,0.00041095,18]
[342864436,1732189841986,-500.0,0.00041095,18]
[342864437,1732189841996,-1235.58,0.00041095,18]
[342864440,1732189842006,-500.0,0.00041095,18]
[342864441,1732189842015,-500.0,0.00041095,18]
[342864443,1732189842024,-500.0,0.00041095,18]
[342864445,1732189842034,-1992.83,0.00041095,18]
[342864447,1732189842043,-500.0,0.00041095,18]
[342864449,1732189842052,-500.0,0.00041095,18]
[342864451,1732189842061,-500.0,0.00041095,18]
[342864453,1732189842070,-1759.71,0.00041095,18]
[342864455,1732189842080,-647.5,0.00041095,18]
[342864457,1732189842090,-608.17,0.00041095,18]
[342864459,1732189842099,-500.0,0.00041095,18]
[342864461,1732189842109,-1061.84,0.00041095,18]
[342864463,1732189842118,-500.0,0.00041095,18]
[342864465,1732189842129,-500.0,0.00041095,18]
[342864467,1732189842140,-500.0,0.00041095,18]
[342864470,1732189842150,-500.0,0.00041095,18]
[342864471,1732189842159,-500.0,0.00041095,18]
[342864472,1732189842168,-932.66,0.00041095,18]
[342864473,1732189842178,-562.67,0.00041095,18]
[342864474,1732189842188,-2807.41,0.00041095,18]
[342864475,1732189842198,-2845.87,0.00041095,18]
[342864476,1732189842208,-678.77,0.00041095,18]
[342864477,1732189842218,-1214.57,0.00041095,18]
[342864478,1732189842227,-500.0,0.00041095,18]
[342864479,1732189842237,-1137.06,0.00041095,18]
[342864480,1732189842246,-500.0,0.00041095,18]
[342864483,1732189842256,-594.38,0.00041095,18]
[342864485,1732189842266,-500.0,0.00041095,18]
[342864487,1732189842276,-500.0,0.00041095,18]
[342864489,1732189842285,-1008.83,0.00041095,18]
[342864491,1732189842295,-500.0,0.00041095,18]
[342864493,1732189842304,-839.59,0.00041095,18]
[342864495,1732189842314,-500.0,0.00041095,18]
[342864497,1732189842323,-996.66,0.00041095,18]
[342864499,1732189842333,-1025.07,0.00041095,18]
[342864501,1732189842342,-842.27,0.00041095,18]
[342864502,1732189842351,-500.0,0.00041095,18]
[342864505,1732189842361,-500.0,0.00041095,18]
[342864507,1732189842371,-500.0,0.00041095,18]
[342864509,1732189842381,-537.18,0.00041095,18]
[342864511,1732189842396,-500.0,0.00041095,18]
[342864513,1732189842406,-500.0,0.00041095,18]
[342864515,1732189842416,-2098.76,0.00041095,18]
[342864517,1732189842425,-638.34,0.00041095,18]
[342864519,1732189842435,-576.77,0.00041095,18]
[342864521,1732189842444,-247.07013962,0.00041095,18]
[342864523,1732189842453,-2701.08,0.00041095,7]
[342864525,1732189842463,-500.0,0.00041095,18]
[342864527,1732189842473,-2231.4,0.00041095,18]
[342864529,1732189842482,-500.0,0.00041095,2]
[342864531,1732189842492,-1239.92,0.00041095,18]
[342864533,1732189842502,-500.0,0.00041095,2]
[342864535,1732189842511,-500.0,0.00041095,18]
[342864537,1732189842524,-500.0,0.00041095,18]
[342864539,1732189842533,-500.0,0.00041095,2]
[342864541,1732189842543,-500.0,0.00041095,2]
[342864543,1732189842552,-500.0,0.00041095,2]
[342864545,1732189842562,-500.0,0.00041095,2]
[342864547,1732189842571,-500.0,0.00041095,18]
[342864549,1732189842580,-500.0,0.00041095,2]
[342864551,1732189842590,-500.0,0.00041095,2]
[342864553,1732189842599,-500.0,0.00041095,2]
[342864555,1732189842609,-500.0,0.00041095,18]
[342864557,1732189842618,-601.15,0.00041095,18]
[342864559,1732189842629,-2366.48,0.00041095,18]
[342864561,1732189842639,-500.0,0.00041095,18]
[342864564,1732189842649,-500.0,0.00041095,18]
[342864566,1732189842658,-931.23,0.00041095,18]
[342864568,1732189842667,-500.0,0.00041095,2]
[342864570,1732189842677,-1301.49,0.00041095,18]
[342864572,1732189842686,-500.0,0.00041095,18]
[342864573,1732189842695,-500.0,0.00041095,18]
[342864576,1732189842704,-500.0,0.00041095,18]
[342864578,1732189842715,-500.0,0.00041095,18]
[342864580,1732189842724,-500.0,0.00041095,18]
[342864582,1732189842733,-684.6,0.00041095,18]
[342864584,1732189842742,-500.0,0.00041095,18]
[342864586,1732189842752,-500.0,0.00041095,18]
[342864588,1732189842761,-500.0,0.00041095,18]
[342864590,1732189842770,-3352.49,0.00041095,18]
[342864592,1732189842779,-500.0,0.00041095,18]
[342864594,1732189842789,-500.0,0.00041095,18]
[342864596,1732189842798,-500.0,0.00041095,18]
[342864598,1732189842808,-500.0,0.00041095,18]
[342864600,1732189842817,-509.26,0.00041095,18]
[342864602,1732189842827,-500.0,0.00041095,18]
[342864604,1732189842836,-500.0,0.00041095,18]
[342864606,1732189842846,-500.0,0.00041095,18]
[342864608,1732189842856,-500.0,0.00041095,18]
[342864610,1732189842866,-4873.57,0.00041095,18]
[342864612,1732189842876,-500.0,0.00041095,18]
[342864614,1732189842887,-1554.7,0.00041095,18]
[342864616,1732189842896,-562.62,0.00041095,18]
[342864618,1732189842906,-500.0,0.00041095,18]
[342864620,1732189842917,-500.0,0.00041095,18]
[342864622,1732189842926,-500.0,0.00041095,18]
[342864624,1732189842936,-500.0,0.00041095,18]
[342864626,1732189842946,-500.0,0.00041095,18]
[342864628,1732189842956,-500.0,0.00041095,18]
[342864630,1732189842966,-582.41,0.00041095,18]
[342864632,1732189842975,-1463.77,0.00041095,18]
[342864634,1732189842984,-500.0,0.00041095,18]
[342864636,1732189842995,-500.0,0.00041095,18]
[342864638,1732189843005,-1384.72,0.00041095,18]
[342864641,1732189843014,-500.0,0.00041095,18]
[342864643,1732189843024,-500.0,0.00041095,18]
[342864645,1732189843033,-500.0,0.00041095,18]
[342864647,1732189843043,-1900.65,0.00041095,18]
[342864649,1732189843052,-2893.79,0.00041095,18]
[342864651,1732189843061,-524.3,0.00041095,18]
[342864654,1732189843070,-562.88,0.00041095,18]
[342864657,1732189843080,-1103.93,0.00041095,18]
[342864659,1732189843089,-500.0,0.00041095,18]
[342864661,1732189843098,-1043.63,0.00041095,18]
[342864663,1732189843108,-500.0,0.00041095,18]
[342864665,1732189843117,-500.0,0.00041095,18]
[342864667,1732189843126,-858.54,0.00041095,18]
[342864669,1732189843136,-677.02,0.00041095,18]
[342864671,1732189843146,-2125.98,0.00041095,18]
[342864673,1732189843156,-500.0,0.00041095,18]
[342864675,1732189843166,-500.0,0.00041095,18]
[342864677,1732189843175,-3611.43,0.00041095,18]
[342864679,1732189843185,-500.0,0.00041095,18]
[342864681,1732189843194,-3236.89,0.00041095,18]
[342864682,1732189843204,-500.0,0.00041095,18]
[342864684,1732189843213,-500.0,0.00041095,18]
[342864686,1732189843223,-1231.51,0.00041095,18]
[342864688,1732189843233,-500.0,0.00041095,18]
[342864689,1732189843241,-1745.12,0.00041095,18]
[342864691,1732189843251,-692.66,0.00041095,18]
[342864693,1732189843261,-542.44,0.00041095,18]
[342864694,1732189843271,-786.81,0.00041095,18]
[342864696,1732189843281,-500.0,0.00041095,18]
[342864698,1732189843290,-500.0,0.00041095,18]
[342864699,1732189843300,-500.0,0.00041095,18]
[342864701,1732189843309,-658.55,0.00041095,18]
[342864703,1732189843319,-573.77,0.00041095,18]
[342864704,1732189843328,-516.27,0.00041095,18]
[342864706,1732189843338,-1036.26,0.00041095,18]
[342864708,1732189843347,-540.2,0.00041095,18]
[342864710,1732189843357,-500.0,0.00041095,18]
[342864711,1732189843367,-500.0,0.00041095,18]
[342864713,1732189843377,-500.0,0.00041095,18]
[342864715,1732189843387,-2890.45,0.00041095,18]
[342864717,1732189843397,-500.0,0.00041095,18]
[342864719,1732189843407,-500.0,0.00041095,18]
[342864720,1732189843417,-500.0,0.00041095,18]
[342864722,1732189843427,-500.0,0.00041095,18]
[342864724,1732189843437,-561.06,0.00041095,18]
[342864725,1732189843447,-500.0,0.00041095,18]
[342864727,1732189843458,-500.0,0.00041095,18]
[342864729,1732189843468,-500.0,0.00041095,18]
[342864738,1732189843567,-500.0,0.00041095,18]
[342864740,1732189843578,-500.0,0.00041095,18]
[342864742,1732189843588,-500.0,0.00041095,18]
[342864744,1732189843597,-500.0,0.00041095,18]
[342864746,1732189843607,-500.0,0.00041095,18]
[342864747,1732189843617,-500.0,0.00041095,18]
[342864749,1732189843626,-500.0,0.00041095,18]
[342864751,1732189843636,-1641.04,0.00041095,18]
[342864753,1732189843646,-500.0,0.00041095,18]
[342864754,1732189843655,-1035.55,0.00041095,18]
[342864756,1732189843665,-1183.85,0.00041095,18]
[342864758,1732189843675,-500.0,0.00041095,18]
[342864760,1732189843684,-1346.81,0.00041095,18]
[342864762,1732189843694,-854.2,0.00041095,18]
[342864764,1732189843704,-1739.27,0.00041095,18]
[342864765,1732189843714,-500.0,0.00041095,18]
[342864767,1732189843724,-500.0,0.00041095,18]
[342864769,1732189843733,-4377.3,0.00041095,18]
[342864772,1732189843743,-1846.22,0.00041095,18]
[342864774,1732189843752,-500.0,0.00041095,18]
[342864776,1732189843761,-500.0,0.00041095,18]
[342864778,1732189843771,-500.0,0.00041095,18]
[342864779,1732189843780,-821.12,0.00041095,18]
[342864781,1732189843789,-533.61,0.00041095,18]
[342864783,1732189843798,-2498.88,0.00041095,18]
[342864785,1732189843808,-500.0,0.00041095,18]
[342864787,1732189843817,-1376.77,0.00041095,18]
[342864788,1732189843827,-500.0,0.00041095,18]
[342864790,1732189843836,-500.0,0.00041095,14]
[342864792,1732189843845,-4688.42,0.00041095,18]
[342864794,1732189843854,-641.7,0.00041095,18]
[342864796,1732189843863,-705.12,0.00041095,18]
[342864798,1732189843872,-2151.98,0.00041095,18]
[342864799,1732189843883,-751.05,0.00041095,18]
[342864801,1732189843892,-500.0,0.00041095,18]
[342864803,1732189843902,-150.0,0.00041095,18]
[342864805,1732189843912,-151.0,0.00041095,14]
[342864807,1732189843922,-500.0,0.00041095,18]
[342864809,1732189843931,-500.0,0.00041095,18]
[342864811,1732189843940,-540.45,0.00041095,18]
[342864812,1732189843949,-500.0,0.00041095,18]
[342864814,1732189843959,-500.0,0.00041095,18]
[342864816,1732189843969,-1000.0,0.00041095,5]
[342864818,1732189843978,-500.0,0.00041095,18]
[342864820,1732189843989,-1964.87,0.00041095,18]
[342864821,1732189843998,-500.0,0.00041095,18]
[342864823,1732189844007,-500.0,0.00041095,18]
[342864825,1732189844017,-2107.2,0.00041095,18]
[342864827,1732189844026,-500.0,0.00041095,18]
[342864829,1732189844035,-500.0,0.00041095,18]
[342864831,1732189844044,-537.63,0.00041095,18]
[342864833,1732189844054,-1460.08,0.00041095,18]
[342864834,1732189844063,-500.0,0.00041095,18]
[342864836,1732189844072,-391.1285249,0.00041095,18]
[342864838,1732189844081,-654.32,0.00041095,18]
[342864840,1732189844091,-946.0,0.00041095,18]
[342864842,1732189844100,-739.24,0.00041095,18]
[342864844,1732189844110,-500.0,0.00041095,18]
[342864845,1732189844119,-500.0,0.00041095,18]
[342864847,1732189844128,-1281.35,0.00041095,18]
[342864849,1732189844140,-500.0,0.00041095,18]
[342864851,1732189844150,-500.0,0.00041095,18]
[342864853,1732189844159,-500.0,0.00041095,18]
[342864855,1732189844169,-1157.56,0.00041095,18]
[342864857,1732189844178,-5000.0,0.00041095,18]
[342864859,1732189844188,-500.0,0.00041095,18]
[342864861,1732189844197,-500.0,0.00041095,18]
[342864862,1732189844207,-300.0,0.00041095,18]
[342864864,1732189844216,-500.0,0.00041095,18]
[342864866,1732189844226,-500.0,0.00041095,18]
[342864868,1732189844235,-1334.74,0.00041095,18]
[342864870,1732189844245,-500.0,0.00041095,18]
[342864872,1732189844254,-1898.89,0.00041095,18]
[342864874,1732189844264,-586.12,0.00041095,18]
[342864875,1732189844274,-500.0,0.00041095,18]
[342864877,1732189844284,-1055.01,0.00041095,18]
[342864879,1732189844293,-1521.13,0.00041095,18]
[342864881,1732189844303,-500.0,0.00041095,18]
[342864883,1732189844313,-500.0,0.00041095,18]
[342864885,1732189844323,-980.42,0.00041095,18]
[342864886,1732189844332,-719.86,0.00041095,18]
[342864888,1732189844342,-500.0,0.00041095,18]
[342864890,1732189844351,-500.0,0.00041095,18]
[342864892,1732189844361,-1961.13,0.00041095,18]
[342864894,1732189844371,-500.0,0.00041095,18]
[342864896,1732189844380,-1372.11,0.00041095,18]
[342864897,1732189844391,-500.0,0.00041095,18]
[342864899,1732189844401,-2412.89,0.00041095,18]
[342864901,1732189844410,-1003.58,0.00041095,18]